fUST/lending_fUST_20251015
["ID","MTS","AMOUNT","RATE_DAILY","PERIOD"]
[391321674,1760521838944,-3241.05,0.00024783,10]
[391321675,1760521838953,-2700.87,0.00024783,10]
[391321676,1760521838963,-183.26981678,0.00024792,2]
[391321677,1760521838972,-229.09218826,0.00024792,2]
[391321678,1760521838981,-151.0,0.00024793,7]
[391321679,1760521838990,-162.462016,0.00024793,7]
[391321680,1760521838999,-162.462016,0.00024793,7]
[391321681,1760521839009,-151.0,0.00024793,7]
[391321682,1760521839019,-162.462016,0.00024793,7]
[391321683,1760521839028,-162.462016,0.00024793,7]
[391321684,1760521839038,-151.0,0.00024793,7]
[391321685,1760521839047,-151.0,0.00024793,7]
[391321686,1760521839057,-151.0,0.00024793,7]
[391321687,1760521839066,-151.0,0.00024793,7]
[391321688,1760521839076,-292.956776,0.00024793,7]
[391321689,1760521839085,-151.0,0.00024793,7]
[391321690,1760521839094,-151.0,0.00024793,7]
[391321691,1760521839104,-151.0,0.00024793,7]
[391321692,1760521839114,-151.0,0.00024793,7]
[391321693,1760521839124,-151.0,0.00024793,7]
[391321694,1760521839133,-107087.39935213,0.00024793,2]
[391321695,1760521839146,-1978.74179234,0.00024793,2]
[391321696,1760521839157,-885.96677516,0.00024793,2]
[391321732,1760521896864,41582.5191,0.00030497,30]
[391321733,1760521897303,500.0,0.00030497,60]
[391321734,1760521897560,500.0,0.00030497,60]
[391321735,1760521897869,380.83292696,0.00030497,60]
[391321736,1760521906055,226.97110512,0.00030497,60]
[391321737,1760521921469,502.85125877,0.00030497,60]
[391321738,1760521925955,502.77651681,0.00030497,60]
[391321739,1760521929138,506.05730526,0.00030497,60]
[391321740,1760521942346,503.5157059,0.00030497,60]
[391321741,1760521947403,500.0,0.00030497,60]
[391321742,1760521947770,512.19432464,0.00030497,60]
[391321743,1760521949900,501.73345424,0.00030497,60]
[391321744,1760521952263,505.99465877,0.00030497,60]
[391321745,1760521954143,500.0,0.00030497,60]
[391321746,1760521954740,500.0,0.00030497,60]
[391321747,1760521955130,267.37010656,0.00030497,60]
[391321748,1760521961148,500.0,0.00030497,60]
[391321749,1760521961372,506.1422295,0.00030497,60]
[391321750,1760521966129,505.48217321,0.00030497,60]
[391321751,1760521973552,502.84289165,0.00030497,60]
[391321752,1760521986197,500.0,0.00030497,60]
[391321753,1760521986487,500.0,0.00030497,60]
[391321754,1760521986698,511.20695575,0.00030497,60]
[391321755,1760522000716,502.25545013,0.00030497,60]
[391321756,1760522008301,500.0,0.00030497,60]
[391321757,1760522008556,522.08325019,0.00030497,60]
[391321758,1760522017340,506.03435422,0.00030497,60]
[391321759,1760522024842,453.87190596,0.00030497,60]
[391321760,1760522034870,504.54977434,0.00030497,60]
[391321761,1760522053711,503.93198786,0.00030497,60]
[391321762,1760522069565,504.92026453,0.00030497,60]
[391321763,1760522085919,507.52551833,0.00030497,60]
[391321764,1760522090349,503.07657014,0.00030497,60]
[391321765,1760522095058,505.9092103,0.00030497,60]
[391321766,1760522099860,500.0,0.00030497,60]
[391321767,1760522100358,183.68596254,0.00030497,60]
[391321768,1760522108382,500.0,0.00030497,60]
[391321769,1760522108670,524.38992507,0.00030497,60]
[391321773,1760522185634,508.99694393,0.00030497,60]
[391321774,1760522207250,503.79415946,0.00030497,60]
[391321775,1760522209071,501.54657239,0.00030497,60]
[391321776,1760522212165,506.781755,0.00030497,60]
[391321778,1760522293496,-180.0,0.00019667,2]
[391321779,1760522339031,500.0,0.00030497,60]
[391321780,1760522487126,500.0,0.00030497,60]
[391321783,1760522756132,-2400.82910816,0.00019275,2]
[391321784,1760522756158,-600.3542403,0.0001947,2]
[391321785,1760522756177,-500.0,0.000197,2]
[391321786,1760522756199,-150.0,0.00019866,2]
[391321787,1760522756220,-172.5,0.00020466,2]
[391321788,1760522756243,-205.68,0.00020473,2]
[391321789,1760522756262,-292.50809707,0.00020796,2]
[391321790,1760522830086,-203.06,0.00019567,2]
[391321791,1760522830108,-74.46605786,0.00020499,2]
[391321792,1760522832106,-331.65394214,0.00020499,2]
[391321793,1760522832127,-3.57703164,0.00020796,2]
[391321794,1760522832148,-195.0,0.00021066,2]
[391321795,1760522832173,-811.23896379,0.00021224,2]
[391321796,1760522844084,-150.0,0.00020499,2]
[391321797,1760522844104,-172.5,0.00021099,2]
[391321798,1760522844124,-736.85917059,0.00021224,2]
[391321799,1760522958077,-195.31,0.00019536,2]
[391321800,1760522958097,-390.62,0.00020466,2]
[391321801,1760522958116,-300.0,0.000212,2]
[391321802,1760522958134,-300.0,0.000212,2]
[391321803,1760522958154,-2299.41130111,0.00021224,2]
[391321804,1760522958173,-585.93,0.00021396,2]
[391321805,1760522958195,-195.0,0.00021699,2]
[391321806,1760522958214,-666.0,0.00022018,2]
[391321807,1760522958233,-217.5,0.00022299,2]
[391321808,1760522958252,-610.51612539,0.00022326,2]
[391321809,1760522960092,-160.88803962,0.00022326,2]
[391321810,1760522971083,-240.5002217,0.000212,2]
[391321811,1760522998539,500.0,0.00030497,60]
[391321812,1760522998909,503.11077033,0.00030497,60]
[391321813,1760523031578,472.64729129,0.00030497,60]
[391321842,1760523032478,-10.46532823,0.000212,2]
[391321844,1760523032490,-240.0,0.00022899,2]
[391321845,1760523032501,-170.58,0.00023306,2]
[391321846,1760523032512,-178.06,0.00023489,2]
[391321848,1760523032523,-300.0,0.00023498,2]
[391321850,1760523032533,-300.0,0.00023498,2]
[391321852,1760523032543,-300.0,0.00023498,2]
[391321855,1760523032555,-1200.0,0.00023498,2]
[391321857,1760523032566,-300.0,0.00023498,2]
[391321859,1760523032577,-50000.0,0.00023499,2]
[391321861,1760523032589,-262.5,0.00023499,2]
[391321863,1760523032600,-509.68033488,0.00023555,2]
[391321865,1760523032613,-18603.8837,0.00023751,2]
[391321868,1760523032623,-234.91219381,0.00023986,2]
[391321870,1760523032633,-1200.0,0.0002405,2]
[391321872,1760523032643,-285.0,0.00024099,2]
[391321874,1760523032654,-320.0,0.000241,2]
[391321876,1760523032665,-866.57512963,0.00024263,2]
[391321878,1760523032677,-7801.64764207,0.00024299,2]
[391321880,1760523032687,-564.5669757,0.00024375,2]
[391321882,1760523032698,-756.84,0.00024392,3]
[391321885,1760523032709,-341.15,0.00024416,2]
[391321887,1760523032719,-2270.49,0.000246,3]
[391321889,1760523032730,-460.52,0.00024603,2]
[391321891,1760523032740,-151.0,0.00024671,7]
[391321893,1760523032749,-151.0,0.00024671,7]
[391321895,1760523032759,-151.0,0.00024671,7]
[391321897,1760523032768,-151.0,0.00024671,7]
[391321899,1760523032778,-151.0,0.00024671,7]
[391321901,1760523032788,-151.0,0.00024671,7]
[391321904,1760523032799,-1875.61,0.00024671,10]
[391321906,1760523032809,-1563.0,0.00024671,10]
[391321908,1760523032820,-1302.5,0.00024671,10]
[391321910,1760523032830,-19918.51513547,0.00024681,2]
[391321912,1760523032841,-160.313551,0.00024681,7]
[391321914,1760523032851,-154.742207,0.00024681,7]
[391321916,1760523032862,-151.0,0.00024681,7]
[391321918,1760523032872,-151.0,0.00024681,7]
[391321921,1760523032883,-226.802687,0.00024681,7]
[391321923,1760523032893,-151.0,0.00024681,7]
[391321925,1760523032902,-151.0,0.00024681,7]
[391321927,1760523032912,-151.0,0.00024681,7]
[391321929,1760523032923,-151.0,0.00024681,7]
[391321931,1760523032934,-151.0,0.00024681,7]
[391321933,1760523032944,-290.5544,0.00024681,7]
[391321934,1760523032954,-151.0,0.00024681,7]
[391321935,1760523032965,-151.0,0.00024681,7]
[391321937,1760523032975,-151.0,0.00024681,7]
[391321939,1760523032986,-151.0,0.00024681,7]
[391321942,1760523032997,-151.0,0.00024681,7]
[391321944,1760523033006,-151.0,0.00024681,7]
[391321946,1760523033016,-151.0,0.00024681,7]
[391321948,1760523033025,-500.0,0.00024681,7]
[391321950,1760523033035,-178.06,0.00024682,2]
[391321952,1760523033044,-229.16166732,0.00024691,2]
[391321954,1760523033053,-35661.79537289,0.00024692,2]
[391321956,1760523033070,-1196.21917227,0.00024692,2]
[391321959,1760523038382,-456.66218402,0.0002405,2]
[391321960,1760523038393,-500.0,0.0002405,2]
[391321961,1760523038402,-355.78362851,0.0002405,2]
[391321962,1760523038412,-503.04003629,0.0002405,2]
[391321963,1760523038424,-447.52959762,0.0002405,2]
[391322095,1760523046482,-52.47040238,0.0002405,2]
[391322096,1760523046493,-500.0,0.0002405,2]
[391322097,1760523046503,-500.0,0.0002405,2]
[391322098,1760523046513,-500.0,0.0002405,2]
[391322099,1760523046522,-151.0,0.000246,7]
[391322100,1760523046532,-151.852018,0.00024681,7]
[391322101,1760523046542,-1085.42,0.00024682,10]
[391322102,1760523046551,-333141.98545484,0.00024692,2]
[391322103,1760523046560,-151.0,0.00024692,7]
[391322104,1760523046570,-151.0,0.00024692,7]
[391322105,1760523046579,-151.0,0.00024692,7]
[391322106,1760523046588,-151.86541,0.00024692,7]
[391322107,1760523046597,-228.570876,0.00024692,7]
[391322108,1760523046606,-307.5,0.00024699,2]
[391322109,1760523046615,-1688.30200632,0.00024703,2]
[391322110,1760523046625,-992.69637314,0.00024703,2]
[391322111,1760523046634,-714.06,0.00024783,3]
[391322112,1760523046643,-595.05,0.00024783,3]
[391322113,1760523046652,-297.52,0.00024783,3]
[391322114,1760523046661,-892.59,0.00024783,3]
[391322115,1760523046670,-151.0,0.00024793,7]
[391322116,1760523046679,-151.0,0.00024793,7]
[391322117,1760523046688,-151.0,0.00024793,7]
[391322118,1760523046697,-168.04628613,0.00024793,7]
[391322119,1760523046707,-151.0,0.00024793,7]
[391322120,1760523046716,-151.0,0.00024793,7]
[391322121,1760523046725,-151.0,0.00024793,7]
[391322122,1760523046734,-500.0,0.00024793,2]
[391322123,1760523046743,-151.0,0.00024793,7]
[391322124,1760523046752,-151.0,0.00024793,7]
[391322125,1760523046761,-695.957989,0.00024793,7]
[391322126,1760523046770,-151.0,0.00024793,7]
[391322127,1760523046779,-695.957989,0.00024793,7]
[391322128,1760523046788,-695.957989,0.00024793,7]
[391322129,1760523046796,-695.957989,0.00024793,7]
[391322130,1760523046805,-151.0,0.00024793,7]
[391322131,1760523046814,-151.0,0.00024793,7]
[391322132,1760523046823,-151.0,0.00024793,7]
[391322133,1760523046832,-151.0,0.00024793,7]
[391322134,1760523046841,-151.00000113,0.00024793,7]
[391322135,1760523046850,-505.12990478,0.00024793,2]
[391322136,1760523046859,-152.98025649,0.00024793,7]
[391322137,1760523046869,-253.8515292,0.00024793,2]
[391322138,1760523046878,-151.0,0.00024793,7]
[391322139,1760523046887,-151.0,0.00024793,7]
[391322140,1760523046896,-151.0,0.00024793,7]
[391322141,1760523046905,-151.0,0.00024793,7]
[391322142,1760523046914,-151.0,0.00024793,7]
[391322143,1760523046923,-151.0,0.00024793,7]
[391322144,1760523046931,-6675.18032797,0.000248,2]
[391322145,1760523046940,-151.0,0.000248,7]
[391322146,1760523046949,-151.0,0.000248,7]
[391322147,1760523046959,-151.0,0.000248,7]
[391322148,1760523046968,-151.0,0.00024885,7]
[391322149,1760523046977,-151.0,0.00024885,7]
[391322150,1760523046986,-205.717978,0.00024885,7]
[391322151,1760523046995,-151.0,0.00024885,7]
[391322152,1760523047004,-151.0,0.00024885,7]
[391322153,1760523047013,-151.0,0.00024885,7]
[391322154,1760523047022,-151.738954,0.00024885,7]
[391322155,1760523047031,-151.0,0.00024885,7]
[391322156,1760523047040,-151.0,0.00024885,7]
[391322157,1760523047049,-151.0,0.00024885,7]
[391322158,1760523047058,-151.0,0.00024885,7]
[391322159,1760523047067,-151.0,0.00024885,7]
[391322160,1760523047076,-151.0,0.00024885,7]
[391322161,1760523047085,-695.957989,0.00024885,7]
[391322162,1760523047094,-151.0,0.00024885,7]
[391322163,1760523047103,-695.957989,0.00024885,7]
[391322164,1760523047112,-695.957989,0.00024885,7]
[391322165,1760523047122,-695.957989,0.00024885,7]
[391322166,1760523047131,-151.0,0.00024885,7]
[391322167,1760523047140,-151.0,0.00024885,7]
[391322168,1760523047149,-151.0,0.00024885,7]
[391322169,1760523047158,-155.292916,0.00024885,7]
[391322170,1760523047167,-200.81996747,0.0002489,7]
[391322171,1760523047176,-151.0,0.0002489,7]
[391322172,1760523047185,-151.0,0.0002489,7]
[391322173,1760523047194,-151.0,0.0002489,7]
[391322174,1760523047206,-191.710675,0.0002489,7]
[391322175,1760523047215,-151.0,0.0002489,7]
[391322176,1760523047223,-151.0,0.0002489,7]
[391322177,1760523047233,-695.957989,0.0002489,7]
[391322178,1760523047243,-151.0,0.0002489,7]
[391322179,1760523047251,-695.957989,0.0002489,7]
[391322180,1760523047260,-695.957989,0.0002489,7]
[391322181,1760523047269,-695.957989,0.0002489,7]
[391322182,1760523047279,-151.0,0.0002489,7]
[391322183,1760523047288,-151.0,0.0002489,7]
[391322184,1760523047297,-151.0,0.0002489,7]
[391322185,1760523047306,-321.074927,0.00024898,2]
[391322186,1760523047315,-151.0,0.00024898,7]
[391322187,1760523047325,-151.0,0.00024898,7]
[391322188,1760523047334,-151.0,0.00024898,7]
[391322189,1760523047343,-242.696128,0.00024898,7]
[391322190,1760523047351,-151.0,0.00024898,7]
[391322191,1760523047360,-151.0,0.000249,7]
[391322192,1760523047370,-151.0,0.000249,7]
[391322193,1760523047379,-151.0,0.000249,7]
[391322194,1760523047387,-151.0,0.000249,7]
[391322195,1760523047396,-151.696287,0.000249,7]
[391322196,1760523047405,-151.0,0.000249,7]
[391322197,1760523047414,-151.0,0.000249,7]
[391322198,1760523047423,-151.0,0.000249,7]
[391322199,1760523047432,-151.0,0.000249,7]
[391322200,1760523047441,-151.0,0.000249,7]
[391322201,1760523047450,-695.957989,0.000249,7]
[391322202,1760523047459,-206.28145,0.000249,7]
[391322203,1760523047467,-695.957989,0.000249,7]
[391322204,1760523047476,-695.957989,0.000249,7]
[391322205,1760523047485,-695.957989,0.000249,7]
[391322206,1760523047494,-151.0,0.000249,7]
[391322207,1760523047503,-151.0,0.000249,7]
[391322208,1760523047512,-479792.464045,0.000249,2]
[391322209,1760523047521,-151.0,0.000249,7]
[391322210,1760523047530,-151.0,0.000249,7]
[391322211,1760523047540,-151.0,0.000249,7]
[391322212,1760523047549,-151.0,0.000249,7]
[391322213,1760523047558,-151.0,0.000249,7]
[391322214,1760523047567,-151.0,0.000249,7]
[391322215,1760523047576,-151.0,0.000249,7]
[391322216,1760523047585,-151.0,0.00024945,7]
[391322217,1760523047594,-500.0,0.00024955,7]
[391322218,1760523047603,-201.13957056,0.00025,7]
[391322219,1760523047613,-152.445,0.00025007,8]
[391322220,1760523047623,-953.59718971,0.00025054,2]
[391322221,1760523047633,-151.0,0.00025064,7]
[391322222,1760523047642,-151.0,0.00025064,7]
[391322223,1760523047651,-695.957989,0.00025064,7]
[391322224,1760523047660,-695.957989,0.00025064,7]
[391322225,1760523047669,-695.957989,0.00025064,7]
[391322226,1760523047678,-695.957989,0.00025064,7]
[391322227,1760523047687,-151.0,0.00025064,7]
[391322228,1760523047696,-151.0,0.00025064,7]
[391322229,1760523047705,-151.0,0.00025064,7]
[391322230,1760523047713,-151.0,0.00025064,7]
[391322231,1760523047722,-151.0,0.00025064,7]
[391322232,1760523047732,-151.0,0.00025064,7]
[391322233,1760523047741,-28679.06065198,0.00025064,3]
[391322234,1760523047750,-1000.0,0.000251,3]
[391322235,1760523047759,-500.0,0.00025229,7]
[391322236,1760523047768,-330.0,0.00025299,2]
[391322237,1760523047778,-11871.65,0.000254,7]
[391322238,1760523047790,-151.0,0.000254,7]
[391322239,1760523047799,-151.0,0.000254,7]
[391322240,1760523047808,-151.0,0.000254,7]
[391322241,1760523047818,-151.0,0.000254,7]
[391322242,1760523047828,-151.0,0.000254,7]
[391322243,1760523047837,-151.0,0.00025468,7]
[391322244,1760523047847,-151.0,0.00025468,7]
[391322245,1760523047857,-420.0,0.00025495,2]
[391322246,1760523047867,-377.0,0.00025495,2]
[391322247,1760523047878,-304.0,0.00025495,2]
[391322248,1760523047887,-500.0,0.00025503,7]
[391322249,1760523047897,-511.73,0.00025526,2]
[391322250,1760523047906,-151.0,0.000256,12]
[391322251,1760523047915,-1680.0,0.00025613,2]
[391322252,1760523047924,-365.17496257,0.00025651,2]
[391322253,1760523047933,-500.0,0.00025651,2]
[391322254,1760523047952,-500.0,0.00025651,2]
[391322255,1760523047962,-500.0,0.00025651,2]
[391322256,1760523047972,-500.66919702,0.00025651,2]
[391322257,1760523047981,-503.04491659,0.00025706,2]
[391322258,1760523047990,-265.67025594,0.00025706,2]
[391322259,1760523047999,-500.0,0.00025706,2]
[391322260,1760523048009,-500.0,0.00025706,2]
[391322261,1760523048018,-501.00490254,0.00025706,2]
[391322262,1760523048027,-300.0,0.00025737,20]
[391322263,1760523048036,-300.0,0.00025737,20]
[391322264,1760523048045,-300.0,0.00025737,20]
[391322265,1760523048055,-300.0,0.00025737,20]
[391322266,1760523048064,-300.0,0.00025737,20]
[391322267,1760523048074,-300.0,0.00025737,20]
[391322268,1760523048083,-300.0,0.00025737,20]
[391322269,1760523048092,-300.0,0.00025737,20]
[391322270,1760523048102,-300.0,0.00025737,20]
[391322271,1760523048111,-300.0,0.00025737,20]
[391322272,1760523048120,-300.0,0.00025737,20]
[391322273,1760523048129,-500.0,0.00025777,7]
[391322274,1760523048138,-953.59718971,0.0002579,2]
[391322275,1760523048147,-500.0,0.00025794,2]
[391322276,1760523048157,-500.0,0.00025794,2]
[391322277,1760523048166,-508.11278191,0.00025794,2]
[391322278,1760523048176,-989.93,0.000258,4]
[391322279,1760523048185,-500.0,0.00025808,2]
[391322280,1760523048194,-514.85893382,0.00025816,2]
[391322281,1760523048206,-502.09203133,0.00025816,2]
[391322282,1760523048215,-500.0,0.00025816,2]
[391322283,1760523048224,-600.0,0.0002586,20]
[391322284,1760523048234,-300.0,0.0002586,20]
[391322285,1760523048243,-500.0,0.00025863,2]
[391322286,1760523048252,-500.0,0.00025863,2]
[391322287,1760523048262,-352.5,0.00025899,2]
[391322288,1760523048271,-2134.53,0.00026027,2]
[391322289,1760523048281,-500.0,0.00026051,7]
[391322290,1760523048291,-504.45699181,0.00026059,2]
[391322291,1760523048300,-504.87857985,0.00026059,2]
[391322292,1760523048310,-500.0,0.00026059,2]
[391322293,1760523048319,-501.75281964,0.00026059,2]
[391322294,1760523048328,-1160.0,0.00026079,2]
[391322295,1760523048338,-1688.3020063,0.00026127,2]
[391322296,1760523048347,-150.0,0.0002614,2]
[391322297,1760523048356,-150.0,0.0002614,2]
[391322298,1760523048366,-250.0,0.0002614,2]
[391322299,1760523048377,-150.0,0.0002614,2]
[391322300,1760523048386,-150.0,0.0002614,2]
[391322301,1760523048396,-981.0,0.0002614,2]
[391322302,1760523048406,-631.0,0.0002614,2]
[391322303,1760523048416,-2161.0,0.0002614,2]
[391322304,1760523048425,-330.215666,0.0002614,28]
[391322305,1760523048435,-1190.1,0.00026153,3]
[391322306,1760523048444,-595.04,0.00026153,3]
[391322307,1760523048454,-500.0,0.00026163,2]
[391322308,1760523048463,-500.0,0.00026199,2]
[391322309,1760523048473,-1001.61255802,0.00026199,2]
[391322310,1760523048482,-1000.0,0.00026199,2]
[391322311,1760523048491,-182.04443085,0.000262,2]
[391322312,1760523048500,-417.15472785,0.00026243,2]
[391322313,1760523048510,-402.51317252,0.00026243,2]
[391322314,1760523048519,-160.0,0.00026244,2]
[391322315,1760523048528,-1005.417729,0.00026254,2]
[391322316,1760523048538,-4199.0,0.00026302,2]
[391322317,1760523048548,-500.0,0.00026325,7]
[391322318,1760523048558,-1000.0,0.00026342,2]
[391322319,1760523048568,-1000.0,0.00026342,2]
[391322320,1760523048578,-1006.42346079,0.00026356,2]
[391322321,1760523048588,-497.42195593,0.00026364,2]
[391322322,1760523048597,-502.41693823,0.00026411,2]
[391322323,1760523048607,-990.41827492,0.00026411,2]
[391322324,1760523048616,-375.0,0.00026499,2]
[391322325,1760523048626,-182.04443085,0.000265,2]
[391322326,1760523048635,-3000.0,0.000265,2]
[391322327,1760523048645,-3000.0,0.0002651,2]
[391322328,1760523048654,-3000.0,0.0002652,2]
[391322329,1760523048663,-953.59718971,0.0002652,2]
[391322330,1760523048672,-5027.640269,0.0002653,2]
[391322331,1760523048682,-404.46318178,0.00026599,7]
[391322332,1760523048691,-1000.0,0.00026607,2]
[391322333,1760523048700,-682.3,0.00026636,2]
[391322334,1760523048709,-328.028428,0.00026676,2]
[391322335,1760523048718,-182.04443085,0.000267,2]
[391322336,1760523048727,-1500.0,0.00026747,2]
[391322337,1760523048737,-564.5669757,0.00026915,2]
[391322338,1760523048746,-182.04443085,0.00027,2]
[391322339,1760523048755,-397.5,0.00027099,2]
[391322340,1760523048764,-756.83,0.000271,3]
[391322341,1760523048773,-2000.0,0.00027295,2]
[391322342,1760523048783,-953.59718971,0.00027387,2]
[391322343,1760523048792,-512.01912813,0.00027397,2]
[391322344,1760523048801,-1008.89460928,0.00027397,2]
[391322345,1760523048810,-500.0,0.00027397,2]
[391322346,1760523048819,-515.8380329,0.00027397,2]
[391322347,1760523048828,-2134.53,0.00027397,4]
[391322348,1760523048837,-1000.0,0.00027397,2]
[391322349,1760523048847,-1000.0,0.00027397,2]
[391322350,1760523048856,-1000.0,0.00027397,2]
[391322351,1760523048865,-1003.77798456,0.00027397,2]
[391322352,1760523048875,-645.84,0.00027397,2]
[391322353,1760523048884,-645.84,0.00027397,2]
[391322354,1760523048894,-645.84,0.00027397,2]
[391322355,1760523048903,-645.84,0.00027397,2]
[391322356,1760523048912,-645.84,0.00027397,2]
[391322357,1760523048921,-645.84,0.00027397,2]
[391322358,1760523048930,-645.84,0.00027397,2]
[391322359,1760523048940,-645.84,0.00027397,2]
[391322360,1760523048949,-645.84,0.00027397,2]
[391322361,1760523048958,-645.84,0.00027397,2]
[391322362,1760523048967,-645.84,0.00027397,2]
[391322363,1760523048976,-645.84,0.00027397,2]
[391322364,1760523048985,-645.84,0.00027397,2]
[391322365,1760523048995,-645.84,0.00027397,2]
[391322366,1760523049008,-645.84,0.00027397,2]
[391322367,1760523049018,-645.84,0.00027397,2]
[391322368,1760523049027,-500.0,0.00027397,2]
[391322369,1760523049036,-645.84,0.00027397,2]
[391322370,1760523049045,-500.0,0.00027397,2]
[391322371,1760523049054,-645.84,0.00027397,2]
[391322372,1760523049064,-500.0,0.00027397,2]
[391322373,1760523049073,-645.84,0.00027397,2]
[391322374,1760523049082,-500.0,0.00027397,2]
[391322375,1760523049091,-645.84,0.00027397,2]
[391322376,1760523049101,-500.0,0.00027397,2]
[391322377,1760523049110,-645.84,0.00027397,2]
[391322378,1760523049119,-500.0,0.00027397,2]
[391322379,1760523049129,-645.84,0.00027397,2]
[391322380,1760523049138,-500.0,0.00027397,2]
[391322381,1760523049147,-645.84,0.00027397,2]
[391322382,1760523049156,-500.0,0.00027397,2]
[391322383,1760523049165,-646.05643876,0.00027397,2]
[391322384,1760523049174,-500.0,0.00027397,2]
[391322385,1760523049183,-558.28732903,0.00027397,2]
[391322386,1760523049192,-1280.56,0.00027397,2]
[391322387,1760523049202,-1280.56,0.00027397,2]
[391322388,1760523049214,-1280.56,0.00027397,2]
[391322389,1760523049223,-1280.56,0.00027397,2]
[391322390,1760523049232,-1280.56,0.00027397,2]
[391322391,1760523049242,-1280.56,0.00027397,2]
[391322392,1760523049253,-1280.56,0.00027397,2]
[391322393,1760523049262,-1280.56,0.00027397,2]
[391322394,1760523049271,-1280.56,0.00027397,2]
[391322395,1760523049433,-1280.56,0.00027397,2]
[391322396,1760523049442,-1280.56,0.00027397,2]
[391322397,1760523049452,-1280.56,0.00027397,2]
[391322398,1760523049461,-1280.56,0.00027397,2]
[391322399,1760523049470,-1280.56,0.00027397,2]
[391322400,1760523049480,-1280.56,0.00027397,2]
[391322401,1760523049489,-1280.56,0.00027397,2]
[391322402,1760523049499,-1280.56,0.00027397,2]
[391322403,1760523049508,-1280.56,0.00027397,2]
[391322404,1760523049517,-1280.56,0.00027397,2]
[391322405,1760523049527,-1280.56,0.00027397,2]
[391322406,1760523049536,-1280.56,0.00027397,2]
[391322407,1760523049546,-1280.56,0.00027397,2]
[391322408,1760523049555,-1280.56,0.00027397,2]
[391322409,1760523049565,-8769.96,0.000274,2]
[391322410,1760523049574,-189.3,0.000274,4]
[391322411,1760523049584,-220.85085068,0.000274,4]
[391322412,1760523049593,-2824.0,0.000275,2]
[391322413,1760523049603,-500.0,0.00027532,2]
[391322414,1760523049612,-391.5897046,0.00027534,30]
[391322415,1760523049622,-1688.3020063,0.0002755,2]
[391322416,1760523049631,-992.69637313,0.0002755,2]
[391322417,1760523049641,-158.570376,0.000276,3]
[391322418,1760523049651,-168.0,0.00027631,2]
[391322419,1760523049660,-587.0,0.00027662,2]
[391322420,1760523049669,-852.88,0.00027746,2]
[391322421,1760523049678,-2025.1636796,0.00027774,2]
[391322422,1760523049688,-2500.0,0.00027843,5]
[391322423,1760523049697,-2351.0,0.00027918,2]
[391322424,1760523049707,-168.0,0.00027941,2]
[391322425,1760523049716,-953.59718971,0.0002799,2]
[391322426,1760523049726,-1000.0,0.00028,5]
[391322427,1760523049735,-1000.0,0.00028,5]
[391322428,1760523049744,-168.0,0.00028286,2]
[391322429,1760523049754,-168.0,0.00028347,2]
[391322430,1760523049763,-3000.0,0.00028391,5]
[391322431,1760523049772,-720.0,0.00028446,30]
[391322432,1760523049781,-451.8750961,0.00028478,2]
[391322433,1760523049790,-383.8723732,0.00028493,30]